fUST/lending_fUST_20250810
["ID","MTS","AMOUNT","RATE_DAILY","PERIOD"]
[378198296,1754778647163,-460.0,0.00022682,2]
[378198297,1754778647172,-160.0,0.00022695,2]
[378198298,1754778647182,-460.0,0.0002278,2]
[378198299,1754778647191,-460.0,0.0002278,2]
[378198300,1754778647201,-276.071726,0.00022781,7]
[378198301,1754778647211,-276.071726,0.00022781,7]
[378198302,1754778647221,-460.0,0.00022781,2]
[378198303,1754778647230,-194.71337548,0.00022781,2]
[378198304,1754778647240,-460.0,0.00022781,2]
[378198305,1754778647250,-460.0,0.00022854,2]
[378198306,1754778647259,-172.774407,0.00022872,7]
[378198307,1754778647269,-160.0,0.00022881,2]
[378198308,1754778647278,-160.0,0.00022881,2]
[378198309,1754778647287,-160.0,0.00022881,2]
[378198310,1754778647298,-460.0,0.00022881,2]
[378198311,1754778647307,-460.0,0.00022881,2]
[378198312,1754778647318,-460.0,0.00022881,2]
[378198313,1754778647328,-369.98297436,0.00022881,2]
[378198314,1754778647337,-460.0,0.00022881,2]
[378198315,1754778647347,-312.16666667,0.00022886,2]
[378198316,1754778647356,-216.61183532,0.00022886,2]
[378198317,1754778647366,-12666.14847857,0.00022886,2]
[378198318,1754778647375,-842.95011917,0.00022886,2]
[378198319,1754778647385,-231.92402426,0.00022886,2]
[378198320,1754778647395,-461.55179734,0.00022886,2]
[378198321,1754778647404,-160.0,0.00022886,2]
[378198322,1754778647413,-215.40758176,0.00022886,2]
[378198323,1754778647422,-527.77735381,0.00022886,2]
[378198324,1754778647432,-500.0,0.00022941,2]
[378198325,1754778647442,-460.0,0.00022944,2]
[378198326,1754778647451,-460.0,0.00022944,2]
[378198327,1754778647461,-460.0,0.00022944,2]
[378198328,1754778647471,-598.69032911,0.00022944,2]
[378198329,1754778647480,-460.0,0.00022944,2]
[378198330,1754778647490,-460.0,0.00022944,2]
[378198331,1754778647499,-501.46,0.00022944,2]
[378198332,1754778647510,-460.0,0.00022944,2]
[378198333,1754778647524,-460.0,0.00022944,2]
[378198334,1754778647533,-460.0,0.00022952,2]
[378198335,1754778647543,-460.0,0.00022952,2]
[378198336,1754778647554,-543.95,0.00022952,2]
[378198337,1754778647563,-460.0,0.00022952,2]
[378198338,1754778647572,-460.0,0.00022953,2]
[378198339,1754778647582,-151.68368688,0.00022953,2]
[378198340,1754778647593,-460.0,0.00022953,2]
[378198341,1754778647603,-488.19,0.00022953,2]
[378198342,1754778647612,-460.0,0.00022953,2]
[378198343,1754778647621,-460.0,0.00022953,2]
[378198344,1754778647630,-460.0,0.00022953,2]
[378198345,1754778647640,-460.0,0.00022953,2]
[378198346,1754778647650,-460.0,0.00022953,2]
[378198347,1754778647660,-460.0,0.00022953,2]
[378198348,1754778647669,-460.0,0.00022953,2]
[378198349,1754778647678,-460.0,0.00022953,2]
[378198350,1754778647688,-460.0,0.00022953,2]
[378198351,1754778647697,-460.0,0.00022953,2]
[378198352,1754778647707,-460.0,0.00022956,2]
[378198353,1754778647717,-530.66,0.00022956,2]
[378198354,1754778647728,-460.0,0.00022956,2]
[378198355,1754778647737,-460.0,0.00022956,2]
[378198356,1754778647747,-231.92402426,0.00023,3]
[378198357,1754778647756,-312.16666667,0.00023,3]
[378198358,1754778647765,-216.61183532,0.00023,3]
[378198359,1754778647775,-527.77735381,0.00023,3]
[378198360,1754778647785,-842.95011917,0.00023,3]
[378198361,1754778647795,-160.0,0.00023,2]
[378198362,1754778647804,-160.0,0.00023,3]
[378198363,1754778647814,-160.0,0.00023,3]
[378198364,1754778647823,-1000.0,0.00023016,2]
[378198365,1754778647833,-460.0,0.00023054,2]
[378198366,1754778647843,-460.0,0.00023054,2]
[378198367,1754778647853,-460.0,0.00023055,2]
[378198368,1754778647862,-460.0,0.00023055,2]
[378198369,1754778647872,-420.0,0.00023067,2]
[378198370,1754778647882,-492.99,0.00023128,2]
[378198371,1754778647893,-566.881942,0.00023155,7]
[378198372,1754778647902,-566.881942,0.00023155,7]
[378198373,1754778647912,-276.071726,0.00023155,7]
[378198374,1754778647921,-276.071726,0.00023155,7]
[378198375,1754778647931,-460.0,0.00023155,2]
[378198376,1754778647941,-460.0,0.00023155,2]
[378198377,1754778647951,-460.0,0.00023155,2]
[378198378,1754778647960,-460.0,0.00023155,2]
[378198379,1754778647970,-1680.0,0.0002316,2]
[378198380,1754778647980,-1200.0,0.00023176,2]
[378198381,1754778647990,-251.15,0.00023199,2]
[378198382,1754778648000,-460.0,0.00023218,2]
[378198383,1754778648010,-460.0,0.00023218,2]
[378198384,1754778648020,-460.0,0.00023218,2]
[378198385,1754778648029,-460.0,0.00023218,2]
[378198386,1754778648039,-460.0,0.00023218,2]
[378198387,1754778648049,-460.0,0.00023226,2]
[378198388,1754778648059,-460.0,0.00023226,2]
[378198389,1754778648069,-460.0,0.00023226,2]
[378198390,1754778648078,-460.0,0.00023227,2]
[378198391,1754778648088,-488.19,0.00023227,2]
[378198392,1754778648097,-460.0,0.00023227,2]
[378198393,1754778648106,-460.0,0.00023227,2]
[378198394,1754778648116,-233.03506741,0.00023227,2]
[378198395,1754778648125,-186.7298308,0.00023227,2]
[378198396,1754778648134,-460.0,0.00023227,2]
[378198397,1754778648146,-460.0,0.00023227,2]
[378198398,1754778648156,-460.0,0.00023227,2]
[378198399,1754778648166,-460.0,0.00023227,2]
[378198400,1754778648175,-460.0,0.0002323,2]
[378198401,1754778648185,-266.88,0.0002323,2]
[378198402,1754778648195,-460.0,0.0002323,2]
[378198403,1754778648205,-260.0,0.00023243,2]
[378198404,1754778648214,-500.0,0.00023288,2]
[378198405,1754778648224,-338.07057274,0.00023328,2]
[378198406,1754778648234,-323.65,0.00023328,2]
[378198407,1754778648243,-460.0,0.00023329,2]
[378198408,1754778648252,-460.0,0.00023329,2]
[378198409,1754778648261,-4819.52880878,0.00023409,2]
[378198410,1754778648271,-288.491615,0.00023429,7]
[378198411,1754778648280,-288.491615,0.00023429,7]
[378198412,1754778648290,-276.071726,0.00023429,7]
[378198413,1754778648299,-276.071736,0.00023429,7]
[378198414,1754778648308,-384.53,0.00023429,2]
[378198415,1754778648318,-460.0,0.00023429,2]
[378198416,1754778648328,-460.0,0.00023429,2]
[378198417,1754778648337,-460.0,0.00023429,2]
[378198418,1754778648347,-12666.14847857,0.0002343,7]
[378198419,1754778648356,-461.55179734,0.0002343,7]
[378198420,1754778648365,-215.40758176,0.0002343,7]
[378198421,1754778648375,-257.57436893,0.00023492,2]
[378198422,1754778648385,-460.0,0.00023492,2]
[378198423,1754778648395,-460.0,0.00023492,2]
[378198424,1754778648404,-460.0,0.00023492,2]
[378198425,1754778648414,-460.0,0.00023492,2]
[378198426,1754778648423,-151.0,0.000235,9]
[378198427,1754778648433,-460.0,0.000235,2]
[378198428,1754778648443,-528.26050108,0.000235,2]
[378198429,1754778648452,-460.0,0.000235,2]
[378198430,1754778648461,-460.0,0.00023501,2]
[378198431,1754778648471,-488.19,0.00023501,2]
[378198432,1754778648480,-460.0,0.00023501,2]
[378198433,1754778648489,-362.12,0.00023501,2]
[378198434,1754778648499,-460.0,0.00023501,2]
[378198435,1754778648510,-460.0,0.00023501,2]
[378198436,1754778648522,-460.0,0.00023501,2]
[378198437,1754778648531,-238.50189427,0.00023504,2]
[378198438,1754778648541,-460.0,0.00023504,2]
[378198439,1754778648550,-460.0,0.00023603,2]
[378198440,1754778648561,-460.0,0.00023603,2]
[378198441,1754778648571,-460.0,0.00023703,2]
[378198442,1754778648580,-460.0,0.00023703,2]
[378198443,1754778648589,-179.40967546,0.00023703,2]
[378198444,1754778648599,-566.881942,0.00023704,7]
[378198445,1754778648610,-566.881942,0.00023704,7]
[378198446,1754778648620,-460.0,0.00023766,2]
[378198447,1754778648629,-460.0,0.00023766,2]
[378198448,1754778648640,-527.95,0.00023766,2]
[378198449,1754778648650,-460.0,0.00023766,2]
[378198450,1754778648659,-460.0,0.00023774,2]
[378198451,1754778648705,-460.0,0.00023774,2]
[378198452,1754778648715,-460.0,0.00023775,2]
[378198453,1754778648725,-488.19,0.00023775,2]
[378198454,1754778648734,-460.0,0.00023775,2]
[378198455,1754778648743,-460.0,0.00023775,2]
[378198456,1754778648753,-460.0,0.00023778,2]
[378198457,1754778648761,-360.0,0.00023791,2]
[378198458,1754778648771,-151.0,0.000238,8]
[378198459,1754778648780,-200.0,0.00023844,15]
[378198460,1754778648790,-200.0,0.00023844,15]
[378198461,1754778648800,-200.0,0.00023844,15]
[378198462,1754778648810,-200.0,0.00023844,15]
[378198463,1754778648820,-200.0,0.00023844,15]
[378198464,1754778648830,-200.0,0.00023844,15]
[378198465,1754778648839,-200.0,0.00023844,15]
[378198466,1754778648849,-460.0,0.00023877,2]
[378198467,1754778648858,-460.0,0.00023877,2]
[378198468,1754778648868,-434.82104255,0.00023977,2]
[378198469,1754778648878,-460.0,0.00023977,2]
[378198470,1754778648888,-151.0,0.00024,10]
[378198471,1754778648897,-231.92402426,0.00024,7]
[378198472,1754778648908,-312.16666667,0.00024,7]
[378198473,1754778648918,-216.61183532,0.00024,7]
[378198474,1754778648927,-527.77735381,0.00024,7]
[378198475,1754778648936,-842.95011917,0.00024,7]
[378198476,1754778648946,-160.0,0.00024,7]
[378198477,1754778648955,-160.0,0.00024,7]
[378198478,1754778648965,-285.96,0.0002404,2]
[378198479,1754778648975,-460.0,0.0002404,2]
[378198480,1754778648984,-460.0,0.0002404,2]
[378198481,1754778648994,-460.0,0.00024048,2]
[378198482,1754778649003,-460.0,0.00024048,2]
[378198483,1754778649012,-400.0,0.00024049,2]
[378198484,1754778649022,-488.19,0.00024049,2]
[378198485,1754778649031,-460.0,0.00024049,2]
[378198486,1754778649041,-460.0,0.00024049,2]
[378198487,1754778649050,-460.0,0.00024052,2]
[378198488,1754778649059,-1230.51208511,0.0002411,2]
[378198489,1754778649069,-1072.91109959,0.00024141,2]
[378198490,1754778649079,-460.0,0.00024151,2]
[378198491,1754778649091,-460.0,0.00024151,2]
[378198492,1754778649103,-184.0,0.00024213,2]
[378198493,1754778649115,-151.0,0.00024222,2]
[378198494,1754778649125,-500.0,0.00024222,2]
[378198495,1754778649134,-500.0,0.00024222,2]
[378198496,1754778649145,-500.0,0.00024222,2]
[378198497,1754778649155,-500.0,0.00024222,2]
[378198498,1754778649165,-500.0,0.00024222,2]
[378198499,1754778649174,-500.0,0.00024222,2]
[378198500,1754778649183,-500.0,0.00024222,2]
[378198501,1754778649193,-500.0,0.00024222,2]
[378198502,1754778649202,-500.0,0.00024222,2]
[378198503,1754778649211,-500.0,0.00024222,2]
[378198504,1754778649221,-500.0,0.00024222,2]
[378198505,1754778649230,-500.0,0.00024222,2]
[378198506,1754778649239,-500.0,0.00024222,2]
[378198507,1754778649249,-500.0,0.00024222,2]
[378198508,1754778649258,-151.0,0.00024222,2]
[378198509,1754778649268,-151.0,0.00024222,2]
[378198510,1754778649277,-151.0,0.00024222,2]
[378198511,1754778649286,-151.0,0.00024222,2]
[378198512,1754778649296,-151.0,0.00024222,2]
[378198513,1754778649306,-151.0,0.00024222,2]
[378198514,1754778649315,-151.0,0.00024222,2]
[378198515,1754778649325,-151.0,0.00024222,2]
[378198516,1754778649335,-151.0,0.00024222,2]
[378198517,1754778649344,-151.0,0.00024222,2]
[378198518,1754778649354,-151.0,0.00024222,2]
[378198519,1754778649363,-151.0,0.00024222,2]
[378198520,1754778649373,-151.0,0.00024222,2]
[378198521,1754778649383,-151.0,0.00024222,2]
[378198522,1754778649396,-460.0,0.00024251,2]
[378198523,1754778649405,-402.99943519,0.00024314,2]
[378198524,1754778649415,-460.0,0.00024322,2]
[378198525,1754778649425,-460.0,0.00024322,2]
[378198526,1754778649435,-488.19,0.00024323,2]
[378198527,1754778649444,-460.0,0.00024323,2]
[378198528,1754778649455,-460.0,0.00024323,2]
[378198529,1754778649464,-460.0,0.00024326,2]
[378198530,1754778649474,-460.0,0.00024339,2]
[378198531,1754778649485,-251.15,0.00024399,2]
[378198532,1754778649495,-460.0,0.00024425,2]
[378198533,1754778649506,-460.0,0.00024425,2]
[378198534,1754778649520,-300.81451058,0.00024473,2]
[378198535,1754778649530,-318535.66,0.000245,2]
[378198536,1754778649540,-288.491615,0.00024525,7]
[378198537,1754778649550,-288.491615,0.00024525,7]
[378198538,1754778649561,-460.0,0.00024525,2]
[378198539,1754778649571,-184.0,0.00024569,2]
[378198540,1754778649581,-460.0,0.00024596,2]
[378198541,1754778649593,-460.0,0.00024596,2]
[378198542,1754778649603,-488.19,0.00024597,2]
[378198543,1754778649613,-415.48042788,0.00024597,2]
[378198544,1754778649622,-460.0,0.000246,2]
[378198545,1754778649632,-39744.3747537,0.00024638,2]
[378198546,1754778649644,-9057.71321343,0.0002465,2]
[378198547,1754778649654,-2587.72,0.00024657,4]
[378198548,1754778649665,-460.0,0.00024699,2]
[378198549,1754778649675,-460.0,0.00024699,2]
[378198550,1754778649687,-460.0,0.00024799,2]
[378198551,1754778649696,-566.881942,0.000248,7]
[378198552,1754778649706,-566.881942,0.000248,7]
[378198553,1754778649716,-460.0,0.0002487,2]
[378198554,1754778649727,-460.0,0.0002487,2]
[378198555,1754778649737,-488.19,0.00024871,2]
[378198556,1754778649747,-8475.40787634,0.00024873,2]
[378198557,1754778649758,-157.38,0.00024874,2]
[378198558,1754778649769,-560.0,0.00024887,2]
[378198559,1754778649779,-151.0,0.000249,7]
[378198560,1754778649788,-288.491615,0.000249,7]
[378198561,1754778649798,-151.0,0.000249,7]
[378198562,1754778649809,-288.491615,0.000249,7]
[378198563,1754778649819,-566.881942,0.000249,7]
[378198564,1754778649828,-566.881942,0.000249,7]
[378198565,1754778649838,-781078.769912,0.000249,2]
[378198566,1754778649848,-460.0,0.00024973,2]
[378198567,1754778649858,-460.0,0.00024973,2]
[378198568,1754778649868,-154.921697,0.00025,5]
[378198569,1754778649879,-183.73,0.00025069,2]
[378198570,1754778649890,-460.0,0.00025073,2]
[378198571,1754778649900,-587.0,0.00025086,2]
[378198572,1754778649910,-460.0,0.00025144,2]
[378198573,1754778649921,-460.0,0.00025144,2]
[378198574,1754778649931,-488.19,0.00025145,2]
[378198575,1754778649941,-4819.52880878,0.00025164,2]
[378198576,1754778649951,-460.0,0.00025247,2]
[378198577,1754778649961,-460.0,0.00025247,2]
[378198578,1754778649971,-460.0,0.00025347,2]
[378198579,1754778649981,-460.0,0.00025418,2]
[378198580,1754778649991,-460.0,0.00025418,2]
[378198581,1754778650001,-488.19,0.00025419,2]
[378198582,1754778650011,-660.0,0.00025435,2]
[378198583,1754778650021,-460.0,0.00025521,2]
[378198584,1754778650032,-460.0,0.00025521,2]
[378198585,1754778650042,-500.0,0.00025556,2]
[378198586,1754778650052,-151.0,0.00025591,2]
[378198587,1754778650062,-251.15,0.00025598,7]
[378198588,1754778650072,-1072.91109959,0.00025611,2]
[378198589,1754778650083,-443.94170797,0.00025621,2]
[378198590,1754778650093,-460.0,0.00025692,2]
[378198591,1754778650103,-460.0,0.00025692,2]
[378198592,1754778650113,-488.19,0.00025693,2]
[378198593,1754778650123,-184.0,0.00025748,2]
[378198594,1754778650133,-971.0,0.00025769,2]
[378198595,1754778650145,-2150.0,0.00025769,2]
[378198596,1754778650155,-636.0,0.00025769,2]
[378198597,1754778650164,-408.0,0.00025769,2]
[378198598,1754778650175,-415.728,0.00025769,2]
[378198599,1754778650184,-460.0,0.00025795,2]
[378198600,1754778650194,-460.0,0.00025795,2]
[378198601,1754778650204,-339.201,0.00025905,11]
[378198602,1754778650214,-460.0,0.00025966,2]
[378198603,1754778650224,-460.0,0.00025966,2]
[378198604,1754778650234,-488.19,0.00025967,2]
[378198605,1754778650244,-760.0,0.00025983,2]
[378198606,1754778650255,-472.01257466,0.00026069,2]
[378198607,1754778650264,-460.0,0.00026069,2]
[378198608,1754778650274,-200.0,0.00026172,15]
[378198609,1754778650285,-200.0,0.00026172,15]
[378198610,1754778650295,-200.0,0.00026172,15]
[378198611,1754778650305,-200.0,0.00026172,15]
[378198612,1754778650315,-200.0,0.00026172,15]
[378198613,1754778650326,-200.0,0.00026172,15]
[378198614,1754778650337,-200.0,0.00026172,15]
[378198615,1754778650347,-200.0,0.00026172,15]
[378198616,1754778650357,-358.0,0.00026172,15]
[378198617,1754778650367,-160.0,0.00026203,3]
[378198618,1754778650378,-400.36279616,0.0002624,2]
[378198619,1754778650395,-460.0,0.0002624,2]
[378198620,1754778650411,-488.19,0.00026241,2]
[378198621,1754778650423,-184.0,0.00026258,2]
[378198622,1754778650436,-460.0,0.00026343,2]
[378198623,1754778650447,-460.0,0.00026514,2]
[378198624,1754778650459,-488.19,0.00026515,2]
[378198625,1754778650471,-860.0,0.00026531,2]
[378198626,1754778650482,-460.0,0.00026617,2]
[378198627,1754778650494,-430.25593,0.00026676,2]
[378198628,1754778650505,-566.881942,0.00026717,7]
[378198629,1754778650519,-566.881942,0.00026717,7]
[378198630,1754778650531,-460.0,0.00026788,2]
[378198631,1754778650542,-488.19,0.00026789,2]
[378198632,1754778650554,-251.15,0.00026797,7]
[378198633,1754778650568,-150.0,0.00026849,2]
[378198634,1754778650581,-460.0,0.00026891,2]
[378198635,1754778650600,-288.491615,0.00026918,7]
[378198636,1754778650615,-288.491615,0.00026918,7]
[378198637,1754778650627,-4819.52880878,0.00026918,6]
[378198638,1754778650642,-151.0,0.0002696,2]
[378198639,1754778650656,-12666.14847857,0.00027,3]
[378198640,1754778650678,-231.92402426,0.00027,3]
[378198641,1754778650690,-461.55179734,0.00027,3]
[378198642,1754778650701,-358.13170129,0.00027,12]
[378198643,1754778650713,-527.77735381,0.00027,3]
[378198644,1754778650725,-160.0,0.00027,3]
[378198645,1754778650738,-160.0,0.00027,3]
[378198646,1754778650750,-480.65446194,0.00027062,2]
[378198647,1754778650763,-488.19,0.00027063,2]
[378198648,1754778650776,-960.0,0.00027079,2]
[378198649,1754778650789,-1072.91109959,0.00027082,2]
[378198650,1754778650801,-175.412277,0.00027157,2]
[378198651,1754778650813,-241.28231305,0.00027165,2]
[378198652,1754778650825,-823.0,0.00027282,2]
[378198653,1754778650836,-488.19,0.00027336,2]
[378198654,1754778650848,-367.47,0.00027347,2]
[378198655,1754778650861,-196.83292583,0.0002739,2]
[378198656,1754778650873,-160.49019912,0.0002739,7]
[378198657,1754778650884,-1000.0,0.00027397,5]
[378198658,1754778650898,-1000.0,0.00027397,5]
[378198659,1754778650909,-1742.28347338,0.00027397,6]
[378198660,1754778651056,-845.43652662,0.00027397,6]
[378198661,1754778651069,-500.0,0.00027397,5]
[378198662,1754778651081,-500.0,0.00027397,5]
[378198663,1754778651093,-500.0,0.00027397,5]
[378198664,1754778651105,-151.0,0.00027398,2]
[378198665,1754778651117,-151.0,0.00027398,2]
[378198666,1754778651128,-151.0,0.00027398,2]
[378198667,1754778651138,-275.32081735,0.00027398,2]
[378198668,1754778651148,-151.0,0.00027398,2]
[378198669,1754778651158,-151.0,0.00027398,2]
[378198670,1754778651167,-151.0,0.00027398,2]
[378198671,1754778651178,-151.0,0.00027398,2]
[378198672,1754778651189,-151.0,0.00027398,2]
[378198673,1754778651199,-151.0,0.00027398,2]
[378198674,1754778651212,-500.0,0.00027398,2]
[378198675,1754778651223,-151.0,0.00027398,2]
[378198676,1754778651235,-1000.0,0.00027466,10]
[378198677,1754778651245,-1000.0,0.00027466,10]
[378198678,1754778651255,-1000.0,0.00027466,10]
[378198679,1754778651265,-1000.0,0.00027466,10]
[378198680,1754778651277,-4000.0,0.000275,2]
[378198681,1754778651288,-1328.30524676,0.000275,2]
[378198682,1754778651302,-573.81909195,0.000275,2]
[378198683,1754778651318,-961.54334193,0.000275,2]
[378198684,1754778652596,-362.41716718,0.00022404,2]
[378198685,1754778653049,-460.0,0.000213,2]
[378198686,1754778653059,-460.0,0.00021308,2]
[378198687,1754778653069,-2198.15456939,0.00021411,2]
[378198688,1754778653080,-460.0,0.00021574,2]
[378198689,1754778653090,-460.0,0.00021582,2]
[378198690,1754778653099,-460.0,0.00021848,2]
[378198691,1754778653109,-460.0,0.00021856,2]
[378198692,1754778653118,-500.0,0.00021917,2]
[378198693,1754778653127,-460.0,0.00022122,2]
[378198694,1754778653137,-568.26,0.0002213,2]
[378198695,1754778653148,-460.0,0.00022396,2]
[378198696,1754778653158,-97.58283282,0.00022404,2]
[378198697,1754778653167,-460.0,0.0002267,2]
[378198698,1754778653177,-460.0,0.00022678,2]
[378198699,1754778653187,-460.0,0.00022944,2]
[378198700,1754778653197,-460.0,0.00022952,2]
[378198701,1754778653206,-232.8,0.00023218,2]
[378198702,1754778653216,-425.48520139,0.00023226,2]
[378198703,1754778653225,-500.0,0.00024657,4]
[378198704,1754778653235,-42282.2059691,0.000275,2]
[378198705,1754778653245,-1477.94107422,0.000275,4]
[378198706,1754778653255,-184.0,0.00027521,2]
[378198707,1754778653264,-1000.0,0.00027603,10]
[378198708,1754778653274,-1000.0,0.00027603,10]
[378198709,1754778653283,-1000.0,0.00027603,10]
[378198710,1754778653293,-1000.0,0.00027603,10]
[378198711,1754778653303,-488.34,0.0002761,2]
[378198712,1754778653313,-1060.0,0.00027627,2]
[378198713,1754778653322,-151.0,0.00027672,2]
[378198714,1754778653331,-151.0,0.00027672,2]
[378198715,1754778653341,-500.0,0.00027672,2]
[378198716,1754778653351,-151.0,0.00027672,2]
[378198717,1754778653360,-154.05361407,0.00027672,2]
[378198718,1754778653369,-151.0,0.00027672,2]
[378198719,1754778653379,-151.0,0.00027672,2]
[378198720,1754778653388,-151.0,0.00027672,2]
[378198721,1754778653401,-151.0,0.00027672,2]
[378198722,1754778653410,-152.14721938,0.00027672,2]
[378198723,1754778653419,-151.0,0.00027672,2]
[378198724,1754778653429,-152.63238369,0.00027672,2]
[378198725,1754778653439,-153.0496871,0.00027672,2]
[378198726,1754778653448,-1000.0,0.0002774,10]
[378198727,1754778653458,-1000.0,0.0002774,10]
[378198728,1754778653467,-1000.0,0.0002774,10]
[378198729,1754778653477,-1000.0,0.0002774,10]
[378198730,1754778653486,-184.0,0.00027761,2]
[378198731,1754778653495,-160.0,0.00027767,4]
[378198732,1754778653505,-461.55179734,0.000278,10]
[378198733,1754778653515,-312.16666667,0.000278,10]
[378198734,1754778653527,-1000.0,0.00027877,10]
[378198735,1754778653537,-1000.0,0.00027877,10]
[378198736,1754778653546,-1000.0,0.00027877,10]
[378198737,1754778653555,-1000.0,0.00027877,10]
[378198738,1754778653566,-776.97925287,0.00027945,5]
[378198739,1754778653575,-198.0,0.00027946,2]
[378198740,1754778653584,-198.0,0.00027946,2]
[378198741,1754778653595,-500.0,0.00027946,2]
[378198742,1754778653604,-251.15,0.00027996,7]
[378198743,1754778653614,-150.0,0.00028,2]
[378198744,1754778653623,-231.92402426,0.00028,10]
[378198745,1754778653632,-216.61183532,0.00028,10]
[378198746,1754778653644,-215.40758176,0.00028,10]
[378198747,1754778653654,-216.61183532,0.00028,3]
[378198748,1754778653663,-552.78917071,0.00028,2]
[378198749,1754778653672,-527.77735381,0.00028,10]
[378198750,1754778653682,-842.95011917,0.00028,10]
[378198751,1754778653691,-842.95011917,0.00028,3]
[378198752,1754778653701,-160.0,0.00028,10]
[378198753,1754778653710,-160.0,0.00028,10]
[378198754,1754778653720,-1000.0,0.00028014,10]
[378198755,1754778653729,-1000.0,0.00028014,10]
[378198756,1754778653739,-1000.0,0.00028014,10]
[378198757,1754778653750,-1000.0,0.00028014,10]
[378198758,1754778653760,-1000.0,0.00028151,10]
[378198759,1754778653769,-1000.0,0.00028151,10]
[378198760,1754778653778,-1000.0,0.00028151,10]
[378198761,1754778653787,-1000.0,0.00028151,10]
[378198762,1754778653796,-1160.0,0.00028174,2]
[378198763,1754778653806,-500.0,0.0002822,2]
[378198764,1754778653815,-566.881942,0.0002827,7]
[378198765,1754778653824,-566.881942,0.0002827,7]
[378198766,1754778653835,-1000.0,0.00028288,10]
[378198767,1754778653845,-1000.0,0.00028288,10]
[378198768,1754778653855,-1000.0,0.00028288,10]
[378198769,1754778653864,-1000.0,0.00028288,10]
[378198770,1754778653874,-200.0,0.0002829,21]
[378198771,1754778653884,-151.8381875,0.00028329,2]
[378198772,1754778653894,-151.0,0.00028368,7]
[378198773,1754778653904,-288.491615,0.00028368,7]
[378198774,1754778653914,-151.0,0.00028368,7]
[378198775,1754778653923,-288.491615,0.00028368,7]
[378198776,1754778653933,-1000.0,0.00028425,10]
[378198777,1754778653942,-1000.0,0.00028425,10]
[378198778,1754778653952,-1000.0,0.00028425,10]
[378198779,1754778653961,-1000.0,0.00028425,10]
[378198780,1754778653972,-1500.0,0.00028439,7]
[378198781,1754778653981,-152.0,0.0002848,7]
[378198782,1754778653991,-152.0,0.0002848,7]
[378198783,1754778654000,-152.0,0.0002848,7]
[378198784,1754778654009,-152.0,0.0002848,7]
[378198785,1754778654019,-152.0,0.0002848,7]
[378198786,1754778654028,-152.0,0.0002848,7]
[378198787,1754778654037,-500.0,0.00028494,2]
[378198788,1754778654047,-1890.33,0.000285,2]
[378198789,1754778654056,-160.0,0.00028521,29]
[378198790,1754778654065,-1072.91109959,0.00028552,2]
[378198791,1754778654075,-1000.0,0.00028562,10]
[378198792,1754778654083,-1000.0,0.00028562,10]
[378198793,1754778654093,-1000.0,0.00028562,10]
[378198794,1754778654102,-1000.0,0.00028562,10]
[378198795,1754778654111,-29670.5389372,0.000286,2]